bitfinex/quotes_SOLUSD_20241223
["timestamp","ask_amount","ask_price","bid_price","bid_amount"]
[1734927729292,1.0,187.17,187.09,0.6970717]
[1734927729604,20.0,187.18,187.09,0.6970717]
[1734927729779,20.0,187.18,187.1,0.80151416]
[1734927730164,20.0,187.18,187.1,40.93145648]
[1734927730579,20.0,187.18,187.11,3.67743002]
[1734927730785,6.16,187.21,187.12,0.80132037]
[1734927731307,6.16,187.21,187.09,0.6970717]
[1734927731308,20.0,187.18,187.09,1.49845652]
[1734927731606,1.0,187.17,187.09,0.6970717]
[1734927732301,20.0,187.18,187.09,0.6970717]
[1734927732472,1.0,187.17,187.09,0.6970717]
[1734927732908,1.5347,187.16,187.09,0.6970717]
[1734927733066,1.0,187.15,187.09,0.6970717]
[1734927734196,6.3704,187.14,187.09,0.6970717]
[1734927734399,20.0,187.11,187.0,40.12994232]
[1734927734582,1.0,187.1,186.98,40.12994232]
[1734927734783,1.0,187.1,186.99,0.80185703]
[1734927735092,1.0,187.1,187.01,3.6862532]
[1734927735467,1.6159,187.09,186.98,0.80192294]
[1734927735697,1.0,187.08,186.95,0.80196188]
[1734927738382,1.6159,187.09,186.96,40.12994232]
[1734927738590,1.6159,187.09,187.0,40.12994232]
[1734927738789,1.6159,187.09,187.02,40.12994232]
[1734927739404,1.6159,187.09,187.01,0.80176614]
[1734927739573,1.6159,187.09,187.02,23.776884]
[1734927739903,6.3704,187.14,187.04,63.90682632]
[1734927740102,6.3704,187.14,187.06,63.90682632]
[1734927740288,1.6159,187.15,187.08,63.90682632]
[1734927740500,1.6159,187.15,187.09,0.80145877]
[1734927740704,1.0,187.18,187.1,23.776884]
[1734927740951,6.148,187.19,187.11,0.80143744]
[1734927741091,1.6159,187.2,187.12,23.776884]
[1734927741392,1.6159,187.2,187.13,0.80127988]
[1734927741977,1.6159,187.2,187.14,23.776884]
[1734927742180,7.148,187.24,187.15,0.80121994]
[1734927742571,6.148,187.24,187.16,23.776884]
[1734927742810,6.148,187.24,187.12,40.12994232]
[1734927742811,6.148,187.24,187.18,23.776884]
[1734927743894,6.148,187.24,187.17,0.80116966]
[1734927744109,1.0,187.23,187.13,23.776884]
[1734927744287,1.0,187.23,187.12,23.776884]
[1734927744490,1.0,187.23,187.14,23.776884]
[1734927744706,1.0,187.23,187.13,0.80131489]
[1734927745516,6.148,187.24,187.14,0.80130066]
[1734927745822,7.148,187.24,187.14,0.80130066]
[1734927746226,7.148,187.24,187.15,23.776884]
[1734927746594,7.148,187.24,187.15,0.80121677]
[1734927746893,6.148,187.24,187.15,0.80121677]
[1734927747428,1.0,187.23,187.14,23.776884]
[1734927747827,20.0,187.21,187.1,40.12994232]
[1734927748039,1.0,187.2,187.11,0.80140146]
[1734927749215,1.0,187.2,187.09,23.776884]
[1734927749411,1.0,187.2,187.08,0.80153054]
[1734927750934,1.0,187.2,187.06,40.93148518]
[1734927751820,1.0,187.2,187.08,40.12994232]
[1734927752214,1.0,187.2,187.09,23.776884]
[1734927755755,1.0,187.2,187.08,23.776884]
[1734927756050,1.0,187.2,187.07,23.776884]
[1734927756224,1.0,187.2,187.09,23.776884]
[1734927756623,1.0,187.2,187.08,23.776884]
[1734927756825,1.0,187.2,187.08,24.57842063]
[1734927757020,1.6285,187.19,187.06,40.93147439]
[1734927757333,1.0,187.18,187.06,40.93147439]
[1734927757718,1.0,187.18,187.07,0.80163318]
[1734927757939,1.0,187.18,187.08,0.80155252]
[1734927758148,1.0,187.18,187.07,0.80155252]
[1734927758354,1.0,187.18,187.08,23.776884]
[1734927758525,1.0,187.18,187.08,24.57846259]
[1734927758728,1.0,187.18,187.08,23.776884]
[1734927759437,1.0,187.18,187.08,24.5784397]
[1734927760141,1.6285,187.19,187.08,40.12994232]
[1734927760352,1.6285,187.19,187.09,23.776884]
[1734927760548,1.0,187.18,187.09,23.776884]
[1734927761648,1.6285,187.19,187.09,23.776884]
[1734927761857,1.6285,187.19,187.12,40.12994232]
[1734927762026,1.6285,187.19,187.14,23.776884]
[1734927763502,1.6285,187.19,187.15,0.80127676]
[1734927764459,1.56416733,187.19,187.14,24.57816091]
[1734927765171,1.0,187.18,187.07,0.80130355]
[1734927767131,1.0,187.18,187.08,23.776884]
[1734927767871,1.0,187.18,187.07,0.80130355]
[1734927768942,1.56416733,187.19,187.1,40.12994232]
[1734927769166,2.664,187.23,187.13,23.776884]
[1734927769376,1.664,187.23,187.15,23.776884]
[1734927769544,1.664,187.23,187.17,23.776884]
[1734927769876,1.664,187.23,187.17,24.57793271]
[1734927770540,1.664,187.23,187.16,23.776884]
[1734927770879,1.664,187.23,187.17,0.80122958]
[1734927773769,1.664,187.23,187.18,23.776884]
[1734927773954,1.664,187.23,187.2,23.776884]
[1734927774155,6.3747,187.28,187.21,0.80102083]
[1734927774366,1.0,187.27,187.2,23.776884]
[1734927775151,7.9279,187.28,187.21,0.80105793]
[1734927775389,7.9279,187.28,187.22,63.90682632]
[1734927775390,1.5532,187.28,187.22,63.90682632]
[1734927775595,6.4798,187.32,187.24,63.90682632]
[1734927775759,6.4798,187.32,187.26,23.776884]
[1734927776090,1.5532,187.33,187.28,23.776884]
[1734927776458,1.5532,187.33,187.29,0.80068513]
[1734927777961,1.5532,187.33,187.28,24.57759723]
[1734927780354,1.5532,187.33,187.28,23.776884]
[1734927780851,1.5532,187.33,187.25,0.80069646]
[1734927781084,1.5532,187.33,187.26,23.776884]
[1734927781266,1.5532,187.33,187.28,23.776884]
[1734927782656,1.5532,187.33,187.25,0.80073034]
[1734927782883,2.5532,187.33,187.26,23.776884]
[1734927784786,2.5532,187.33,187.25,0.80073034]
[1734927784991,1.5532,187.33,187.24,23.776884]
[1734927785168,1.5532,187.33,187.26,0.80085905]
[1734927786088,1.5532,187.33,187.26,23.776884]
[1734927786593,2.5532,187.33,187.22,40.93072395]
[1734927786753,2.5532,187.33,187.23,23.776884]
[1734927786959,2.5532,187.33,187.22,0.80078163]
[1734927787693,2.5532,187.33,187.21,0.8009657]
[1734927788358,2.5532,187.33,187.22,23.776884]
[1734927789684,2.5532,187.33,187.21,0.8009657]
[1734927789891,2.5532,187.33,187.18,40.12994232]
[1734927790192,20.0,187.29,187.19,0.80104905]
[1734927790384,20.0,187.29,187.19,25.48592145]
[1734927791181,20.0,187.29,187.2,23.776884]
[1734927791609,1.0,187.28,187.19,0.80104905]
[1734927791770,1.0,187.28,187.15,24.6848724]
[1734927792099,1.0,187.28,187.16,0.80117077]
[1734927792269,1.6559,187.27,187.16,0.80117077]
[1734927792579,1.0,187.26,187.16,0.80117077]
[1734927793599,20.0,187.22,187.16,0.80117077]
[1734927793802,20.0,187.22,187.14,0.80124291]
[1734927794496,1.0,187.21,187.12,0.80132439]
[1734927796205,20.0,187.22,187.13,48.4617564]
[1734927796403,21.0,187.22,187.13,49.26299273]
[1734927796585,21.0,187.22,187.13,24.57812033]
[1734927798381,20.0,187.22,187.13,49.26299273]
[1734927798584,20.0,187.22,187.16,23.776884]
[1734927799110,20.0,187.22,187.15,0.80125325]
[1734927799275,20.0,187.22,187.15,23.776884]
[1734927799671,20.0,187.22,187.16,0.8012774]
[1734927799981,20.0,187.22,187.17,23.776884]
[1734927801303,6.1582,187.25,187.18,0.80113932]
[1734927802006,6.1582,187.25,187.17,23.776884]
[1734927802189,6.1582,187.25,187.14,23.776884]
[1734927802190,20.0,187.22,187.14,23.776884]
[1734927804814,1.6559,187.27,187.15,0.80128608]
[1734927805026,1.6559,187.27,187.18,24.6848724]
[1734927805317,1.6559,187.27,187.21,23.776884]
[1734927805618,6.544,187.3,187.22,25.48569031]
[1734927805783,1.5275,187.32,187.24,24.6848724]
[1734927805985,1.5275,187.32,187.26,23.776884]
[1734927806223,1.5275,187.32,187.28,23.776884]
[1734927807622,1.5275,187.32,187.25,0.80072977]
[1734927807791,1.5275,187.32,187.26,23.776884]
[1734927807993,21.5275,187.32,187.23,0.80079874]
[1734927808215,1.0,187.31,187.22,23.776884]
[1734927808595,1.0,187.31,187.19,0.80100976]
[1734927809723,1.0,187.31,187.17,0.80104499]
[1734927810725,6.0878,187.3,187.17,0.80104499]
[1734927811023,20.0,187.27,187.18,0.80113642]
[1734927811217,1.0,187.26,187.15,0.80113795]
[1734927812719,1.5878,187.25,187.13,24.6848724]
[1734927813031,1.0,187.24,187.14,0.80126936]
[1734927813796,1.0,187.24,187.12,0.80133876]
[1734927813992,20.0,187.2,187.09,25.48621433]
[1734927814201,1.5878,187.18,187.09,0.80134193]
[1734927814435,1.0,187.17,187.05,25.48641096]
[1734927815826,1.5878,187.18,187.09,24.6848724]
[1734927816129,1.5878,187.18,187.13,24.6848724]
[1734927816432,16.05797096,187.23,187.14,0.80120083]
[1734927816604,7.6756,187.23,187.14,0.80120083]
[1734927816805,7.6756,187.23,187.15,23.776884]
[1734927817037,7.6756,187.23,187.16,0.8012242]
[1734927817429,1.0,187.22,187.14,0.80122247]
[1734927817608,7.6756,187.23,187.14,0.80122247]
[1734927817807,7.6756,187.23,187.15,23.776884]
[1734927818041,7.6756,187.23,187.16,0.8011936]
[1734927818616,7.6756,187.23,187.15,23.776884]
[1734927819103,20.0,187.2,187.14,0.80124431]
[1734927819303,20.0,187.2,187.13,23.776884]
[1734927819505,20.0,187.2,187.14,0.80134775]
[1734927819821,20.0,187.2,187.12,0.80129994]
[1734927821311,20.0,187.2,187.13,23.776884]
[1734927823333,20.0,187.2,187.12,23.776884]
[1734927823567,20.0,187.2,187.13,0.80132252]
[1734927823740,7.6756,187.23,187.14,23.776884]
[1734927824033,7.6756,187.23,187.15,0.80119981]
[1734927824636,7.6756,187.23,187.16,23.776884]
[1734927824814,7.6756,187.23,187.17,0.80120343]
[1734927825018,1.6094,187.27,187.18,23.776884]
[1734927825337,1.6094,187.27,187.2,23.776884]
[1734927825552,1.6094,187.27,187.21,0.80094319]
[1734927826044,2.6094,187.27,187.17,0.80100471]
[1734927826340,2.6094,187.27,187.18,23.776884]
[1734927826941,20.0,187.25,187.15,0.8010995]
[1734927827146,1.0,187.24,187.15,0.8010995]
[1734927827353,20.0,187.25,187.15,0.8010995]
[1734927828254,20.0,187.25,187.16,23.776884]
[1734927828433,1.0,187.24,187.16,23.776884]
[1734927828633,20.0,187.25,187.16,23.776884]
[1734927829154,1.0,187.24,187.16,24.57805596]
[1734927830148,1.0,187.24,187.16,23.776884]
[1734927830454,20.0,187.25,187.17,0.80117766]
[1734927830749,1.0,187.24,187.17,0.80117766]
[1734927830961,1.0,187.24,187.16,24.57809286]
[1734927831462,1.0,187.24,187.1,40.94968622]
[1734927831753,20.0,187.2,187.1,0.80121599]
[1734927832434,20.0,187.2,187.11,0.80140094]
[1734927833450,20.0,187.2,187.08,40.14847023]
[1734927833451,20.0,187.2,187.1,23.776884]
[1734927833655,20.0,187.2,187.12,23.776884]
[1734927834126,20.0,187.2,187.11,0.80140043]
[1734927834326,1.0,187.19,187.09,0.80143329]
[1734927834840,1.5043,187.18,187.09,0.80143329]
[1734927835337,1.5043,187.18,187.1,0.80144792]
[1734927835536,1.5043,187.18,187.08,23.776884]
[1734927835850,2.5043,187.18,187.09,0.80149004]
[1734927836063,2.5043,187.18,187.07,0.80150234]
[1734927837125,2.5043,187.18,187.05,0.80162522]
[1734927837662,2.5043,187.18,187.06,23.776884]
[1734927838335,6.096,187.17,187.02,40.14847023]
[1734927838545,20.0,187.14,187.03,0.80172169]
[1734927838836,1.0,187.13,187.03,0.80172169]
[1734927839237,1.6316,187.12,187.03,0.80172169]
[1734927839438,1.0,187.11,187.01,0.80178242]
[1734927839640,1.6316,187.12,187.02,23.776884]
[1734927839940,1.0,187.11,187.03,0.80174677]
[1734927840256,1.0,187.11,186.99,0.80176743]
[1734927840257,20.0,187.07,186.99,0.80176743]
[1734927841747,20.0,187.07,187.0,23.776884]
[1734927842739,2.5673,187.06,186.92,0.80193387]
[1734927842940,2.5673,187.06,186.92,25.5360596]
[1734927843245,20.0,187.02,186.92,0.80193387]
[1734927843447,1.0,187.01,186.92,0.80193387]
[1734927843655,1.0,187.01,186.9,25.43119743]
[1734927843830,1.0,187.01,186.91,0.80221508]
[1734927844571,20.0,187.02,186.92,23.776884]
[1734927844737,20.0,187.02,186.94,23.776884]
[1734927844943,6.5974,187.05,186.96,48.51100973]
[1734927845145,6.5974,187.05,186.98,48.51100973]
[1734927845446,1.5673,187.06,187.0,23.776884]
[1734927845642,1.5673,187.06,187.01,0.80181374]
[1734927846357,1.5673,187.06,186.99,0.80183899]
[1734927846539,1.5673,187.06,187.01,0.80183899]
[1734927847374,1.5673,187.06,186.97,0.80184536]
[1734927847870,1.5673,187.06,186.98,23.776884]
[1734927848069,1.5673,187.06,187.0,23.776884]
[1734927848271,1.5673,187.06,187.01,0.80184334]
[1734927848437,1.5673,187.06,187.02,23.776884]
[1734927848639,1.5673,187.06,187.03,0.80169166]
[1734927848936,1.5478,187.13,187.04,23.776884]
[1734927849144,1.5478,187.13,187.06,23.776884]
[1734927849348,1.5478,187.13,187.07,0.80154387]
[1734927851776,21.0,187.12,187.01,40.19705975]
[1734927852065,21.0,187.12,187.03,23.776884]
[1734927852275,20.0,187.12,187.04,0.80173755]
[1734927854761,1.0,187.11,187.02,0.80168442]
[1734927854961,1.0,187.11,187.0,0.80181389]
[1734927855167,1.0,187.11,186.98,0.80186107]
[1734927856054,20.0,187.07,186.96,0.80200597]
[1734927856365,1.0,187.06,186.96,0.80200597]
[1734927857157,1.0,187.06,186.97,0.80199839]
[1734927857387,1.0,187.06,186.94,0.80199054]
[1734927857779,1.0,187.06,186.95,23.776884]
[1734927858061,7.6758,187.05,186.92,0.80212034]
[1734927858287,20.0,187.02,186.9,1.49929581]
[1734927858459,1.0,187.01,186.9,1.49929581]
[1734927859467,1.0,187.01,186.9,0.6970717]
[1734927860964,8.0582,187.0,186.9,0.6970717]
[1734927861166,20.0,186.97,186.9,0.6970717]
[1734927861468,1.5994,186.95,186.9,0.6970717]
[1734927861667,1.0,186.94,186.9,0.6970717]
[1734927862360,1.0,186.94,186.82,0.80247671]
[1734927862766,1.0,186.94,186.72,0.6970717]
[1734927862767,20.0,186.9,186.8,0.80266602]
[1734927862987,1.0,186.89,186.76,40.19705975]
[1734927863185,1.0,186.89,186.77,0.80281849]
[1734927863880,1.0,186.89,186.75,0.80290167]
[1734927864269,2.11036554,186.94,186.8,40.19705975]
[1734927864487,1.0,186.93,186.81,0.80254932]
[1734927864668,21.0,186.93,186.82,40.19705975]
[1734927864877,21.0,186.93,186.83,0.80254765]
[1734927865595,1.0,186.93,186.83,0.80254765]
[1734927865786,20.0,186.94,186.84,23.776884]
[1734927865990,20.0,186.94,186.85,0.80249384]
[1734927866220,1.0,186.93,186.85,0.80249384]
[1734927866511,20.0,186.94,186.85,0.80249384]
[1734927866717,20.0,186.94,186.86,23.776884]
[1734927867115,20.0,186.94,186.85,0.80249384]
[1734927867296,1.0,186.93,186.85,0.80249384]
[1734927867483,1.0,186.93,186.84,23.776884]
[1734927868690,20.0,186.94,186.85,0.80256194]
[1734927868888,1.0,186.93,186.85,0.80256194]
[1734927869105,1.6476,186.96,186.86,23.776884]
[1734927869306,1.0,186.95,186.86,23.776884]
[1734927869622,1.0,186.95,186.82,40.19705975]
[1734927869790,1.0,186.95,186.84,23.776884]
[1734927870822,20.0,186.94,186.8,40.19705975]
[1734927870989,1.0,186.93,186.81,0.80263443]
[1734927872922,1.0,186.93,186.78,40.19705975]
[1734927872923,1.0,186.93,186.79,0.80272582]
[1734927874222,1.0,186.93,186.8,23.776884]
[1734927874394,1.0,186.93,186.81,0.80268257]
[1734927875230,1.0,186.93,186.82,23.776884]
[1734927875390,1.0,186.93,186.84,23.776884]
[1734927875725,1.0,186.93,186.83,0.80252192]
[1734927875910,1.0,186.93,186.81,24.78733848]
[1734927876110,1.0,186.93,186.82,24.57955144]
[1734927877493,1.6476,186.96,186.86,40.27223912]
[1734927877694,1.0,186.95,186.86,40.27223912]
[1734927879128,20.0,186.94,186.86,40.27223912]
[1734927879495,20.0,186.94,186.84,40.27223912]
[1734927879727,1.0,186.93,186.85,0.80248678]
[1734927879932,1.0,186.93,186.83,0.80248678]
[1734927880318,1.0,186.93,186.8,40.27223912]
[1734927880524,1.0,186.93,186.78,41.07487203]
[1734927880820,1.656,186.92,186.78,41.07487203]
[1734927881129,6.5847,186.9,186.78,41.07487203]
[1734927881338,1.0,186.89,186.78,41.07487203]
[1734927881626,6.5847,186.9,186.8,40.27223912]
[1734927881825,6.5847,186.9,186.81,24.57948843]
[1734927882039,1.0,186.89,186.81,0.80260443]
[1734927882325,20.0,186.87,186.81,0.80260443]
[1734927883133,20.0,186.83,186.72,0.6970717]
[1734927883316,20.0,186.82,186.72,0.6970717]
[1734927883666,20.0,186.82,186.74,40.27223912]
[1734927884134,20.0,186.83,186.74,40.27223912]
[1734927884313,8.1458,186.86,186.76,40.27223912]
[1734927884696,8.1458,186.86,186.78,40.27223912]
[1734927885208,8.1458,186.86,186.76,40.27223912]
[1734927885422,8.1458,186.86,186.77,23.776884]
[1734927886617,6.6592,186.9,186.81,23.776884]
[1734927887331,6.6592,186.9,186.83,23.776884]
[1734927887539,1.6054,186.91,186.83,23.776884]
[1734927887735,1.6054,186.91,186.84,40.27223912]
[1734927888035,1.6054,186.91,186.85,23.776884]
[1734927889842,20.0,186.92,186.85,23.776884]
[1734927890049,6.5039,186.95,186.85,23.776884]
[1734927890231,20.0,186.92,186.85,23.776884]
[1734927893039,20.0,186.92,186.84,40.27223912]
[1734927893251,20.0,186.92,186.82,40.27223912]
[1734927893448,1.00307549,186.94,186.77,2.20787758]
[1734927893449,6.5039,186.95,186.86,40.27223912]
[1734927893623,20.0,186.92,186.86,40.27223912]
[1734927893946,6.5039,186.95,186.88,40.27223912]
[1734927894239,1.5347,186.96,186.88,40.27223912]
[1734927894447,6.3399,187.0,186.91,23.776884]
[1734927894748,1.523,187.01,186.93,23.776884]
[1734927895713,1.523,187.01,186.95,23.776884]
[1734927895937,1.523,187.01,186.92,40.27223912]
[1734927896151,1.523,187.01,186.91,23.776884]
[1734927898053,2.52572847,187.01,186.91,23.776884]
[1734927898558,1.523,187.01,186.91,23.776884]
[1734927898733,1.523,187.01,186.93,23.776884]
[1734927900655,2.52569841,187.01,186.93,23.776884]
[1734927900849,2.52569841,187.01,186.9,40.27223912]
[1734927901054,1.523,187.01,186.9,40.27223912]
[1734927902239,1.523,187.01,186.91,23.776884]
[1734927902430,2.52571363,187.01,186.91,23.776884]
[1734927903156,2.52572373,187.01,186.91,23.776884]
[1734927903624,2.52572373,187.01,186.88,40.27223912]
[1734927903946,2.52572373,187.01,186.83,15.0408]
[1734927903947,20.0,186.97,186.83,1.6602]
[1734927904147,1.00312377,186.96,186.84,40.27223912]
[1734927904364,1.00312377,186.96,186.82,6.6506]
[1734927904365,1.5159,186.95,186.82,40.27223912]
[1734927904531,1.00320265,186.94,186.82,40.27223912]
[1734927904864,20.0,186.9,186.8,40.27223912]
[1734927905428,20.0,186.9,186.82,40.27223912]
[1734927906264,20.0,186.9,186.83,23.776884]
[1734927906962,6.3163,186.93,186.86,40.27223912]
[1734927907269,1.5159,186.95,186.87,23.776884]
[1734927907647,21.5159,186.95,186.87,23.776884]
[1734927909061,1.00299368,186.94,186.84,40.27223912]
[1734927909263,1.00299368,186.94,186.85,23.776884]
[1734927909469,1.00299368,186.94,186.84,40.27223912]
[1734927909766,1.00309217,186.94,186.84,40.27223912]
[1734927909932,21.5159,186.95,186.84,40.27223912]
[1734927911651,21.5159,186.95,186.83,23.776884]
[1734927912861,21.5159,186.95,186.84,40.27223912]
[1734927913172,21.5159,186.95,186.85,23.776884]
[1734927913347,21.5159,186.95,186.86,40.27223912]
[1734927913546,21.5159,186.95,186.85,23.776884]
[1734927914267,21.5159,186.95,186.82,40.27223912]
[1734927914566,21.5159,186.95,186.83,23.776884]
[1734927914869,21.5159,186.95,186.84,40.27223912]
[1734927915048,1.5159,186.95,186.89,40.27223912]
[1734927916564,21.5159,186.95,186.88,23.776884]
[1734927917731,6.2359,186.98,186.91,40.27223912]
[1734927917945,6.2359,186.98,186.92,23.776884]
[1734927921974,6.2359,186.98,186.93,40.27223912]
[1734927922180,8.0137,187.03,186.96,23.776884]
[1734927922472,8.0137,187.03,186.85,40.80202029]
[1734927922473,1.6279,187.03,186.99,40.27223912]
[1734927922961,16.42867096,187.08,187.0,23.776884]
[1734927923655,8.0463,187.08,187.0,23.776884]
[1734927924643,8.0463,187.08,187.01,40.27223912]
[1734927924943,8.0463,187.08,187.02,23.776884]
[1734927925746,8.0463,187.08,187.01,23.776884]
[1734927926683,8.0463,187.08,187.01,64.04912312]
[1734927927179,8.0463,187.08,187.01,23.776884]
[1734927928272,1.00218751,187.07,186.98,23.776884]
[1734927928462,20.0,187.05,186.93,40.27223912]
[1734927928706,20.0,187.05,186.92,40.27223912]
[1734927928876,20.0,187.05,186.91,40.27223912]
[1734927928877,1.00255376,187.04,186.91,40.27223912]
[1734927929039,1.5822,187.03,186.91,40.27223912]
[1734927929243,1.00274377,187.02,186.9,40.27223912]
[1734927929652,1.00274377,187.02,186.91,40.27223912]
[1734927930338,1.00274377,187.02,186.92,23.776884]
[1734927930544,20.0,186.98,186.86,40.27223912]
[1734927931868,20.0,186.98,186.88,40.27223912]
[1734927932452,20.0,186.98,186.9,40.27223912]
[1734927933390,20.0,186.98,186.91,23.776884]
[1734927933692,20.0,186.98,186.88,40.27223912]
[1734927933856,20.0,186.98,186.89,23.776884]
[1734927936247,20.0,186.98,186.9,40.27223912]
[1734927936449,20.0,186.98,186.91,23.776884]
[1734927938473,20.0,186.98,186.92,40.27223912]
[1734927938783,20.0,186.98,186.93,23.776884]
[1734927938988,20.0,186.98,186.92,40.27223912]
[1734927939164,20.0,186.98,186.91,23.776884]
[1734927940290,20.0,186.98,186.88,24.75680418]
[1734927940462,20.0,186.98,186.89,23.776884]
[1734927942997,1.6498,186.97,186.89,23.776884]
[1734927945295,20.0,186.93,186.82,24.75680418]
[1734927945499,1.00318137,186.92,186.82,24.75680418]
[1734927945795,1.0032024,186.92,186.82,24.75680418]
[1734927946105,1.5922,186.91,186.8,24.75680418]
[1734927946463,1.00318898,186.9,186.8,24.75680418]
[1734927946790,1.00318898,186.9,186.72,0.6970717]
[1734927946791,7.19405631,186.9,186.72,0.6970717]
[1734927946966,1.6612,186.86,186.73,24.75680418]
[1734927947165,1.6612,186.86,186.72,0.6970717]
[1734927947166,2.66477546,186.86,186.72,0.6970717]
[1734927947366,2.66477546,186.86,186.73,24.75680418]
[1734927947581,2.66477546,186.86,186.73,31.10390876]
[1734927947896,2.66477546,186.86,186.74,3.66570976]
[1734927948418,20.0,186.82,186.73,24.75680418]
[1734927948915,1.00376157,186.81,186.72,0.6970717]
[1734927949480,20.0,186.82,186.72,0.6970717]
[1734927950182,20.0,186.82,186.72,41.00474405]
[1734927950609,20.0,186.82,186.73,23.776884]
[1734927950914,20.0,186.82,186.74,40.30767235]
[1734927951092,6.1908,186.85,186.74,40.30767235]
[1734927951093,6.1908,186.85,186.75,23.776884]
[1734927954317,1.00361665,186.84,186.75,23.776884]
[1734927954633,20.0,186.82,186.73,23.776884]
[1734927954799,20.0,186.82,186.72,41.00474405]
[1734927955190,1.00374703,186.81,186.72,41.00474405]
[1734927955390,20.0,186.82,186.72,41.00474405]
[1734927956125,1.6659,186.81,186.72,41.00474405]
[1734927956290,1.6659,186.81,186.73,23.776884]
[1734927957201,1.6659,186.81,186.72,41.00474405]
[1734927958821,1.6659,186.81,186.73,23.776884]
[1734927965021,1.6659,186.81,186.74,40.30767235]
[1734927965223,1.6659,186.81,186.76,40.30767235]
[1734927965424,6.1908,186.85,186.79,23.776884]
[1734927965801,6.1908,186.85,186.81,23.776884]
[1734927967322,6.1908,186.85,186.78,40.30767235]
[1734927967515,6.1908,186.85,186.77,23.776884]
[1734927968297,6.1908,186.85,186.76,40.30767235]
[1734927969012,1.00353671,186.84,186.76,40.30767235]
[1734927969227,6.1908,186.85,186.76,40.30767235]
[1734927970128,1.00359258,186.84,186.76,40.30767235]
[1734927970325,6.1908,186.85,186.77,23.776884]
[1734927970706,6.1908,186.85,186.76,40.30767235]
[1734927971235,6.1908,186.85,186.77,23.776884]
[1734927978761,6.1908,186.85,186.79,23.776884]
[1734927979846,1.571,186.86,186.79,23.776884]
[1734927980045,1.571,186.86,186.82,24.79358803]
[1734927980253,1.571,186.86,186.83,23.776884]
[1734927982043,6.1194,186.9,186.84,24.79358803]
[1734927982246,6.1194,186.9,186.85,23.776884]
[1734927982861,7.643,186.95,186.88,24.79358803]
[1734927983153,7.643,186.95,186.89,23.776884]
[1734927983922,7.643,186.95,186.89,48.57047203]
[1734927984123,7.643,186.95,186.89,23.776884]
[1734927989938,1.6255,187.0,186.94,20.0]
[1734927990269,1.6255,187.0,186.97,23.776884]
[1734927990837,1.6255,187.0,186.94,44.79358803]
[1734927991037,1.6255,187.0,186.95,23.776884]
[1734927991269,1.6255,187.0,186.93,23.776884]
[1734927996087,1.6255,187.0,186.93,48.57047203]
[1734927996253,1.6255,187.0,186.93,24.79358803]
[1734927997987,1.6255,187.0,186.91,24.79358803]
[1734927998177,1.6255,187.0,186.92,23.776884]
[1734928002571,21.6255,187.0,186.84,1.5985]
[1734928002775,21.6255,187.0,186.83,6.1541]
[1734928002776,6.5189,186.98,186.85,24.79358803]
[1734928003083,1.00299516,186.97,186.85,24.79358803]
[1734928004204,1.00299516,186.97,186.86,23.776884]
[1734928004792,1.00297268,186.97,186.86,23.776884]
[1734928004964,6.5189,186.98,186.88,23.776884]
[1734928005695,6.5189,186.98,186.91,23.776884]
[1734928005858,6.5189,186.98,186.92,24.79358803]
[1734928006060,6.5189,186.98,186.93,23.776884]
[1734928006890,1.6255,187.0,186.95,23.776884]
[1734928007188,1.6255,187.0,186.96,24.79358803]
[1734928007358,1.6255,187.0,186.97,23.776884]
[1734928007554,6.0362,187.03,186.97,23.776884]
[1734928008375,6.0362,187.03,186.99,23.776884]
[1734928009097,1.515,187.05,186.99,23.776884]
[1734928009479,1.515,187.05,186.99,48.57047203]